Cogmind - Beta 14 @@@ ROGUE MODE // 2024.08.26 @ 21:12:02 Player: Daffa0360 Result: Destroyed by ZJ-2Q7(R) with Subdweller Machine Gun Performance ------------- Evolutions (0) 0 Regions Visited (2) 400 Robots Destroyed (24) 120 Value Destroyed (541) 541 Prototype IDs (11) 220 Alien Tech Used (0) 0 Bonus (0) 0 TOTAL SCORE: 1281 Bonus ------- None Cogmind --------- Core Integrity 0/250 Matter 160/300 Energy 195/200 System Corruption 0% Temperature Cool (0) Movement Walking (130) Location -10/Subcaves Parts ------- > --- POWER (1) -------- Subdweller Power Source > --- PROPULSION (2) --- Cargo Legs > --- UTILITY (2+2) ---- Disposable Heat Sink Small Storage Unit > --- WEAPON (2) ------- Subdweller Shrapnel Launcher Makeshift Sword > --- INVENTORY (8) ---- Hacking Suite Makeshift Shrapnel Gun Battle Cannon Mining Laser Mining Laser Shrapnel Trap Peak State ------------ > --- POWER ------------ Subdweller Power Source > --- PROPULSION ------- Cargo Legs > --- UTILITY ---------- Disposable Heat Sink Small Storage Unit > --- WEAPON ----------- Powered Cannon > --- INVENTORY -------- Hacking Suite Makeshift Shrapnel Gun Battle Cannon Subdweller Shrapnel Launcher Mining Laser Mining Laser Makeshift Sword Shrapnel Trap [Rating: 36] Favorites ----------- Power Subdweller Power Source Engine Subdweller Power Source Propulsion Cargo Legs Leg Cargo Legs Wheel Wheel Utility Small Storage Unit Device Seismic Detector Storage Small Storage Unit Weapon Powered Cannon Energy Gun Medium Laser Energy Cannon Powered Cannon Ballistic Gun Assault Rifle Ballistic Cannon Battle Cannon Launcher Subdweller Shrapnel Launcher Special Weapon Mining Laser Slashing Weapon Makeshift Sword Build | -11 -10 -10 ------- Run | Yrd Mat Sub Slots Evolved . | . . . Power . | . . . Propulsion . | . . . Utility . | . . . Weapon . | . . . Parts Attached 17 | 2 1 14 Power 3 | . . 3 Engine 3 | . . 3 Core . | . . . Reactor . | . . . Propulsion 4 | . . 4 Treads . | . . . Leg 2 | . . 2 Wheel 2 | . . 2 Hover . | . . . Flight . | . . . Utility 2 | 1 . 1 Device 2 | 1 . 1 Storage . | . . . Processor . | . . . Hackware . | . . . Protection . | . . . Artifact . | . . . Weapon 8 | 1 1 6 Energy Gun 1 | 1 . . Energy Cannon 1 | . . 1 Ballistic Gun . | . . . Ballistic Cannon 1 | . . 1 Launcher 2 | . . 2 Special Weapon 1 | . 1 . Impact Weapon . | . . . Slashing Weapon 2 | . . 2 Piercing Weapon . | . . . Special Melee Weapon . | . . . Unidentified Prototypes 1 | . . 1 Parts Lost 5 | . . 5 Power 1 | . . 1 Propulsion 1 | . . 1 Utility 1 | . . 1 Weapon 2 | . . 2 Highest Loss Streak 3 | . . 3 To Critical Strikes . | . . . Average Slot Usage (%) 69 | . 100 65 Engine 8 | . 14 7 Leg 9 | . 28 7 Wheel 8 | . . 9 Device 11 | . 14 10 Storage 11 | . 14 11 Energy Gun 1 | . 12 . Energy Cannon 5 | . . 5 Ballistic Gun 5 | . 14 3 Launcher 1 | . . 1 Special Weapon 2 | . 1 2 Slashing Weapon 1 | . . 2 Peak Build Rating 36 | 7 7 36 Average Rating 21 | 6 7 23 On Entrance 6 | 6 7 7 Naked Turns . | . . . Heaviest Build 22 | 13 13 22 Greatest Support 55 | 20 20 55 Greatest Overweight (x) 2 | . . 2 Average Overweight (x) . | . . . Largest Inventory Capacity 8 | 8 8 8 Average Capacity 8 | 8 8 8 Most Carried 8 | 8 8 8 Average Carried 7 | 6 7 7 Final Capacity 8 | 8 8 8 Final Carried 8 | 8 7 6 Class Distribution -------------------- 100% | Mutant Dominant Class ---------------- Mutant | -10/Materials Mutant | -10/Subcaves Resources | -11 -10 -10 ----------- Run | Yrd Mat Sub Matter Collected 477 | 238 39 200 Remotely . | . . . Salvage Created 516 | 151 136 229 Parts 52 | 14 14 24 Haulers Intercepted . | . . . Recyclers Shooed . | . . . Parts Field Recycled . | . . . Retrieved Matter . | . . . Parts Self-Destructed 5 | . . 5 Prevented . | . . . Kills | -11 -10 -10 ------- Run | Yrd Mat Sub Combat Hostiles Destroyed 16 | . 5 11 Guns 5 | . 5 . Cannons 5 | . . 5 AOE 6 | . . 6 Classes Destroyed 7 | 2 3 2 Tunneler 4 | 4 . . Recycler 1 | 1 . . Operator 1 | . 1 . Turret 2 | . . 2 Swarmer 7 | . 3 4 Grunt 2 | . 2 . Subdweller 7 | . . 7 Best Kill Streak 6 | 3 3 6 Combat Bots Only 4 | . 3 4 Max Kills in Single Turn 3 | 2 2 3 Gunslinging 1 | . 1 . Exploded 2 | . . 2 Melee . | . . . Uniques/NPCs Destroyed . | . . . Combat | -11 -10 -10 -------- Run | Yrd Mat Sub Hostile Shots Fired 76 | . 17 59 Missed 27 | . 7 20 Damage Taken 1228 | . 102 1126 Core 254 | . 16 238 Absorbed by Shields . | . . . Core Remaining (%) 100 | 100 . . Volleys Fired 59 | 10 14 35 Largest 2 | 2 2 2 Hottest 100 | 70 100 79 Shots Fired 80 | 20 23 37 Gun 38 | 20 18 . Cannon 29 | . . 29 Launcher 8 | . . 8 Special 5 | . 5 . Kinetic 37 | 10 9 18 Thermal 43 | 10 14 19 Explosive . | . . . Electromagnetic . | . . . Robot Hit Streak 10 | 2 6 10 Robot Miss Streak 3 | 1 3 1 Penetration Max . | . . . Secondary Targets 2 | . 2 . Max Gunslinging Chain 1 | . 1 . Shots Hit Robots 48 | 12 13 23 Core Hits 32 | 6 10 16 Critical Kills . | . . . Critical Parts Destroyed . | . . . Critical Strikes 2 | 1 1 . Burn 2 | 1 1 . Melee Attacks 19 | . . 19 Impact . | . . . Slashing 19 | . . 19 Piercing . | . . . Sneak Attacks . | . . . Combat Hostiles . | . . . Follow-up Attacks . | . . . Damage Inflicted 1666 | 171 161 1334 Guns 332 | 171 161 . Cannons 561 | . . 561 Explosions 600 | . . 600 Melee 173 | . . 173 Ramming . | . . . Kinetic 885 | 108 74 703 Thermal 608 | 63 87 458 Explosive . | . . . Electromagnetic . | . . . Impact . | . . . Slashing 173 | . . 173 Piercing . | . . . Highest Corruption . | . . . Average Corruption . | . . . Corruption Purged . | . . . Corruption Blocked . | . . . Overload Shots . | . . . Overflow Damage 29 | . . 29 Projectiles 16 | . . 16 Explosions 13 | . . 13 Melee . | . . . Knockbacks 3 | . . 3 Impact . | . . . Kinetic 3 | . . 3 Secondary . | . . . Self-Inflicted Damage . | . . . Shots . | . . . Rammed . | . . . Targets Rammed . | . . . Kicked . | . . . Crushed . | . . . Highest Temperature 189 | 27 63 189 Average Temperature 24 | 12 21 95 Received Heat Transfer 441 | . 33 408 Siege Activations . | . . . Robots Corrupted . | . . . Combat Hostiles . | . . . Parts Fried . | . . . Impact Corruptions . | . . . Robots Melted . | . . . Combat Hostiles . | . . . Parts Melted 3 | 2 1 . Heat Transferred 592 | 259 333 . Parts Sabotaged . | . . . Parts Stolen . | . . . Parts Stripped . | . . . Power Chain Reactions . | . . . Alert | -11 -10 -10 ------- Run | Yrd Mat Sub Peak Influence 156 | 25 156 . Initial 16 | . 16 . Average 89 | 12 108 . Maximum Alert Level . | . . . Low Security (%) 100 | 100 100 . Level 1 . | . . . Level 2 . | . . . Level 3 . | . . . Level 4 . | . . . Level 5 . | . . . High Security . | . . . Max Security . | . . . Squads Dispatched 1 | . 1 . Investigation . | . . . Extermination . | . . . Reinforcement 1 | . 1 . Assault . | . . . Garrison . | . . . Intercept . | . . . Searches Triggered . | . . . Construction Impeded . | . . . Haulers Reinforced . | . . . Active Scanning Responses . | . . . Cargo Convoy Interrupts . | . . . Stealth | -11 -10 -10 --------- Run | Yrd Mat Sub Distress Signals . | . . . Communications Jammed . | . . . Distress Signals . | . . . Times Spotted 20 | . 6 14 Peak Tracking Total 4 | . 3 4 Tactical Retreats . | . . . Traps | -11 -10 -10 ------- Run | Yrd Mat Sub Traps Triggered 3 | . . 3 Indirectly . | . . . Trap Hack Attempts . | . . . Triggered . | . . . Disarmed . | . . . Reprogrammed . | . . . Reused . | . . . Traps Extracted . | . . . Installed . | . . . Triggered . | . . . Most Traps Carried 1 | . . 1 Machines | -11 -10 -10 ---------- Run | Yrd Mat Sub Machines Disabled 5 | . . 5 Max in Single Turn 2 | . . 2 Machines Repaired . | . . . Machines Dismantled . | . . . Machines Sabotaged . | . . . Overloaded Fab Kills . | . . . Hacking | -11 -10 -10 --------- Run | Yrd Mat Sub Machines Accessed 1 | . . 1 Terminals . | . . . Fabricators . | . . . Repair Stations . | . . . Recycling Units . | . . . Scanalyzers . | . . . Garrison Access . | . . . Total Hacks 1 | . . 1 Successful 1 | . . 1 Failed . | . . . Catastrophic . | . . . Database Lockouts . | . . . Manual . | . . . Terminals . | . . . Fabricators . | . . . Repair Stations . | . . . Recycling Units . | . . . Scanalyzers . | . . . Garrison Access . | . . . Terminal Hacks 1 | . . 1 Derelict Proto ID Bank 1 | . . 1 Fabricator Hacks . | . . . Repair Station Hacks . | . . . Recycling Unit Hacks . | . . . Scanalyzer . | . . . Garrison Access Hacks . | . . . Unauthorized Hacks . | . . . Terminals . | . . . Fabricators . | . . . Repair Stations . | . . . Recycling Units . | . . . Scanalyzers . | . . . Garrison Access . | . . . Data Cores Recovered . | . . . Used . | . . . Hacking Detections . | . . . Full Trace Events . | . . . Feedback Events . | . . . Feedback Blocked . | . . . Robot Schematics Acquired . | . . . Robots Built . | . . . Authchips . | . . . Time . | . . . Total Robot Build Rating . | . . . Part Schematics Acquired . | . . . Parts Built . | . . . Authchips . | . . . Time . | . . . Total Part Build Rating . | . . . Parts Repaired . | . . . Time . | . . . Parts Recycled . | . . . Recycled Matter . | . . . Retrieved Matter . | . . . Retrieved Components . | . . . Parts Scanalyzed . | . . . Part Schematics Acquired . | . . . Parts Damaged . | . . . Bothacking | -11 -10 -10 ------------ Run | Yrd Mat Sub Used RIF Installer . | . . . Robots Hacked . | . . . Non-combat . | . . . Combat . | . . . Robot Hacks Applied . | . . . Relay Couplers Released . | . . . Fabnet Peak Effective % . | . . . Robots Rewired . | . . . Allies Hacked . | . . . Hacks Repelled . | . . . Allies | -11 -10 -10 -------- Run | Yrd Mat Sub Total Allies . | . . . Largest Group . | . . . Highest-Rated Group . | . . . Highest-Rated Ally . | . . . Total Orders . | . . . Ally Attacks . | . . . Total Damage . | . . . Kills . | . . . Allies Corrupted . | . . . Allies Melted . | . . . Intel | -11 -10 -10 ------- Run | Yrd Mat Sub Robot Analysis Total . | . . . Derelict Logs Recovered 1 | . . 1 Drone Launches . | . . . Drone Recoveries . | . . . Exploration | -11 -10 -10 ------------- Run | Yrd Mat Sub Turns Passed 3406 | 91 378 2937 Spaces Moved 1968 | 25 121 1822 Core . | . . . Treads . | . . . Legs 1400 | 25 121 1254 Wheels 568 | . . 568 Hover . | . . . Flight . | . . . Fastest Speed 80 | 120 120 80 Average Speed 123 | 120 120 124 Slowest Speed 260 | 120 120 260 Overloaded Moves . | . . . Propulsion Burnouts . | . . . Robots Hopped . | . . . Cave-ins Triggered . | . . . Exploration Rate (%) 40 | 4 24 94 Regions Visited 2 Branch Regions 1 Pre-discovered Areas 2 | . . 2 Known Exits Taken . | . . . Unknown Exits Taken 2 | 1 1 . Scrap Searched 8 | . . 8 Spaces Dug 3 | . . 3 Terrain Destroyed 68 | . . 68 Melee 1 | . . 1 Projectile 3 | . . 3 AOE 64 | . . 64 Terrain Rammed . | . . . Walls Destroyed . | . . . Machines Disabled . | . . . Actions | -11 -10 -10 --------- Run | Yrd Mat Sub Total 2830 | 65 321 2444 Wait 745 | 27 183 535 Move 1966 | 24 120 1822 Hop . | . . . Pick Up 11 | 2 1 8 Fast Attach 6 | 1 . 5 Attach 5 | . . 5 Detach 1 | . . 1 Swap 6 | 1 1 4 Drop 12 | . 2 10 Fire 59 | 10 14 35 Melee 19 | . . 19 Ram . | . . . Kick . | . . . Crush . | . . . Escape Stasis . | . . . Rewire . | . . . Trap . | . . . Miscellaneous . | . . . Route ------- -11/Scrapyard -10/Materials -10/Subcaves (discovered 3 exits: [*Mat x2] / [*Rec]) History --------- Turn | Location | Event 12 | -11/Scrapyard | Discovered new exit (range 3) 92 | -11/Scrapyard | Entered Materials 307 | -10/Materials | Build established: Mutant 465 | -10/Materials | Discovered new exit (range 3) 470 | -10/Materials | Entered Subcaves 672 | -10/Subcaves | Learned location of Storage (-9) 1018 | -10/Subcaves | Shifting Twisted Machinery released Shrapnel Trap 1133 | -10/Subcaves | A swath of the cavern ceiling suddenly collapsed 1194 | -10/Subcaves | Shifting Twisted Machinery released Mak. Shrapnel Gun 1270 | -10/Subcaves | A Subdweller sparked back to life 1270 | -10/Subcaves | A Subdweller sparked back to life 1270 | -10/Subcaves | A Subdweller sparked back to life 1312 | -10/Subcaves | Found Prototype Energy Cannon 1313 | -10/Subcaves | Identified Powered Cannon 1314 | -10/Subcaves | Attached Powered Cannon, gained temporary slot: Power 1321 | -10/Subcaves | Lost 3 parts (1p1n1w) 1751 | -10/Subcaves | Visited 4L-MR0's lab 1768 | -10/Subcaves | Found Cargo Legs 1769 | -10/Subcaves | Attached Cargo Legs, gained temporary slots: Utility x2 2028 | -10/Subcaves | Discovered new exit (range 10) 2047 | -10/Subcaves | Learned location of Zion (-6) 2047 | -10/Subcaves | Met a Zionite searching for "candidates" 2415 | -10/Subcaves | Shifting Twisted Machinery released Sub. Machine Gun 2978 | -10/Subcaves | Core integrity fell below 50% 2991 | -10/Subcaves | Shifting Twisted Machinery released Barrage Gun 3025 | -10/Subcaves | Discovered new exit (range 13) 3092 | -10/Subcaves | Discovered new exit (range 11) 3393 | -10/Subcaves | Core integrity fell below 20% 3407 | -10/Subcaves | Destroyed by ZJ-2Q7(R) with Subdweller Machine Gun Last Messages --------------- Machinery. 03025_ EXIT=FOUND 03037_ Machine disabled. 03037_ S-10 Pest destroyed. 03037_ S-10 Pest springs to life. 03039_ Autobeam Turret destroyed. 03039_ S-10 Pest destroyed. 03041_ Destroyed Autobeam. 03041_ Autobeam Turret destroyed. 03044_ Flight Unit fries itself beyond repair. 03054_ Lgt. Ion Engine fries itself beyond repair. 03092_ EXIT=FOUND 03137_ Triggered Piercing Trap. 03137_ Spikes shoot up from the floor. 03137_ Critical hit (Impale). 03146_ Subatomizers dissect the Sub. Optics. 03177_ Triggered Piercing Trap. 03177_ Spikes shoot up from the floor. 03177_ Critical hit (Impale). Map ----- +----------------------------------------------------+ | ??????????#### ######???# #????????? | | ??????????# ## ## ##??????## #????????? | | ??????????# ### ####??## ##???????? | | ??????????# #?## #### #???????? | | ##??????### ##?## #???????? | | #??###?# ##?# ### ##??????? | | ##?# ##### #?# #### #??????? | | ### #?## ##?# #####?# #??????? | | ## ### #####??# ###?????# ##??????? | | ##?????## ##??????## #???????? | | ##?????# #??????## #???????? | | ## ## ##??? ##??????# #???????? | | ## ###### ##?# ####???????# ##???????? | | # #?#### #?###???????????## ##????????? | | #### ###???????????????# ###?????????? | | ### ##?????????????###?## #???????????? | | #?????????????## #?# ##??????????? | | ##????????????# #### ##?????????? | | #????????##### # # #?????????? | | ## ### #??????## ## ##????????? | | ?## #?### ###??### ## # # #????????? | | ### ##???#### #### ##### #????????? | | ##?#### ## #??# ##????????? | | ### ## #??# #?????????? | | ## ##?## ##????????? | | # @ #??# #????????? | | ## ##### ## R ##??## ##????????? | | ?# ????##### #????# #????????? | | ?# ????????## ####### #????????? | | ?## ?????????### ## ### # ##????????? | | ??### ???????????####### ## # ##????????? | | ????# ?????????????????# ##### ###??????? | | ????# ?????????????????###???# #??????? | | ????## ??????????????????????## ##??????? | | ?????# ???????????????????????# ##??????? | | ?????# ???????????????????????# #??????? | | ?????? ???????????????????????# #??????? | | ??????????????????????????????## #??????? | | ???????????????????????????????## ##??????? | | ????????????????????????#######?# ##???????? | | ??????????????????????###" " "#### #????????? | | ?????????????????????##""" ""### #????????? | | ?????????????????????# && "## #????????? | | ????????????????????## ###" # ##????????? | | ???##???????????????# [ & # # " # ##????????? | | ??#"#???????????????#" %%%% # #????????? | | ##""#???????????????# ][#% # #????????? | | """#????????????????# ]%%%=# #" # #????????? | | #?????????????????# [ [ ## ## # ##???????? | | #?????????????????#" / "# ##??????? | +----------------------------------------------------+ Best States ------------- Heat Dissipation 25 Coolant Potential 50 Energy Generation 15 Energy Capacity 250 Matter Stores 300 Matter Capacity 300 Sight Range 16 Terrain Scan Density 10 Evasion (%) 55 Item Schematics ----------------- None Robot Schematics ------------------ None Fabricated ------------ Nothing Alien Tech Used ----------------- None Achievements -------------- None Challenges ------------ None Game ------ Seed MetafiberBoltHumpback Manual? 0 Play Time 00:18:16 Cumulative 73.3 hours Start 2024.08.26 @ 20:31:56 End 2024.08.26 @ 21:12:02 Sessions 1 Manual Loads 0 Difficulty Rogue Special Mode None Game No. 122 Rogue 118 Adventurer 4 Explorer 0 Win Type - Total 0 Types 0/0/0/0/0/0/0/0/0 Lore% 32 Gallery% 45 Achievement% 35 Wizard Run 0 Options --------- Layout 2 ASCII 0 Keyboard 0 Movement Mouse Keybinds 0 Fullscreen 2 Font 24/Smallcaps Map View 50x44 Zoom Use 0% Tactical HUD 1 Map Filters NONE Filters NONE Steam 1 RUN: cf22ce9c-c058-4606-98a2-0bd8a3aeaf66